[Event "SRB-chW Semifinal 2021"]
[Site "Paracin"]
[Date "2021.03.18"]
[Round "4.4"]
[White "Vujcic, Milena"]
[Black "Jurisic, Iskra"]
[Result "1/2-1/2"]
[ECO "B12"]
[WhiteElo "2069"]
[BlackElo "1713"]
[Annotator "NA"]
[PlyCount "53"]
[EventDate "2021.03.16"]
[EventType "swiss"]
[EventCountry "SRB"]
[SourceTitle "playchess.com"]
[Source "ChessBase"]
[SourceQuality "1"]
[TimeControl "40/5400+30:1800+30"]

1. e4 {[%emt 0:00:00]} c6 {[%emt 0:00:01]} 2. d4 {[%emt 0:00:00]} d5 {[%emt 0:00:18]} 3. e5 {[%emt 0:00:47]} Bf5 {[%emt 0:00:35]} 4. h4 {[%emt 0:00:37]} Qa5+ {[%emt 0:00:30]} 5. c3 {[%emt 0:18:29]} e6 {[%emt 0:02:04]} 6. Nd2 {[%emt 0:02:53]} h6 {[%emt 0:01:22]} 7. g4 {[%emt 0:00:21]} Bh7 {[%emt 0:01:16]} 8. b4 {[%emt 0:04:47]} Qc7 {[%emt 0:03:16]} 9. a4 {[%emt 0:00:33]} a5 {[%emt 0:01:09]} 10. b5 {[%emt 0:04:41]} c5 {[%emt 0:02:05]} 11. Rh3 {[%emt 0:05:58]} h5 {[%emt 0:06:42]} 12. g5 {[%emt 0:15:28]} Bf5 {[%emt 0:04:09]} 13. Re3 {[%emt 0:08:14]} cxd4 {[%emt 0:08:14]} 14. cxd4 {[%emt 0:00:05]} Bb4 {[%emt 0:00:21]} 15. Ba3 {[%emt 0:02:20]} Ne7 {[%emt 0:11:26]} 16. Bxb4 {[%emt 0:08:47]} axb4 {[%emt 0:00:14]} 17. Rb3 {[%emt 0:07:11]} Ng6 {[%emt 0:08:41]} 18. Ndf3 {[%emt 0:05:06]} O-O {[%emt 0:01:08]} 19. Qd2 {[%emt 0:00:39]} Qa5 {[%emt 0:07:25]} 20. Rxb4 {[%emt 0:03:37]} Rc8 {[%emt 0:03:32]} 21. Rb2 {[%emt 0:00:09]} Nd7 {[%emt 0:01:21]} 22. Qxa5 {[%emt 0:05:19]} Rxa5 {[%emt 0:00:17]} 23. Be2 {[%emt 0:00:48]} Nb6 {[%emt 0:01:57]} 24. Bd1 {[%emt 0:00:57]} Nf4 {[%emt 0:01:17]} 25. Rba2 {[%emt 0:00:43]} Nd3+ {[%emt 0:00:44]} 26. Kf1 {[%emt 0:00:19]} Nb4 {[%emt 0:03:50]} 27. Ra3 {[%emt 0:00:52]} 1/2-1/2

[Event "SRB-chW Semifinal 2021"]
[Site "Paracin"]
[Date "2021.03.19"]
[Round "5.11"]
[White "Manakova, Maria"]
[Black "Srdanovic, Jovana"]
[Result "1/2-1/2"]
[ECO "A06"]
[WhiteElo "2271"]
[BlackElo "2109"]
[Annotator "NA"]
[PlyCount "35"]
[EventDate "2021.03.16"]
[EventType "swiss"]
[EventCountry "SRB"]
[SourceTitle "playchess.com"]
[Source "ChessBase"]
[SourceQuality "1"]
[TimeControl "40/5400+30:1800+30"]

1. Nf3 {[%emt 0:00:00]} d5 {[%emt 0:00:00]} 2. c4 {[%emt 0:00:00]} c6 {[%emt 0:00:00]} 3. e3 {[%emt 0:00:01]} Nf6 {[%emt 0:00:12]} 4. Nc3 {[%emt 0:00:11]} g6 {[%emt 0:11:52]} 5. d4 {[%emt 0:04:25]} Bg7 {[%emt 0:00:31]} 6. Bd3 {[%emt 0:00:14]} O-O {[%emt 0:00:41]} 7. O-O {[%emt 0:00:03]} a6 {[%emt 0:11:38]} 8. Bd2 {[%emt 0:13:09]} Qd6 {[%emt 0:09:05]} 9. c5 {[%emt 0:11:13]} Qc7 {[%emt 0:01:29]} 10. Ne5 {[%emt 0:00:30]} Nfd7 {[%emt 0:01:44]} 11. f4 {[%emt 0:00:17]} Nxe5 {[%emt 0:01:31]} 12. fxe5 {[%emt 0:00:55]} f6 {[%emt 0:01:18]} 13. exf6 {[%emt 0:00:35]} Bxf6 {[%emt 0:01:20]} 14. Qc2 {[%emt 0:14:14]} Kg7 {[%emt 0:23:32]} 15. e4 {[%emt 0:11:35]} Bxd4+ {[%emt 0:06:45]} 16. Kh1 {[%emt 0:00:13]} Rxf1+ {[%emt 0:00:07]} 17. Rxf1 {[%emt 0:00:07]} Be6 {[%emt 0:00:18]} 18. Bg5 {[%emt 0:28:14]} 1/2-1/2

[Event "SRB-chW Semifinal 2021"]
[Site "Paracin"]
[Date "2021.03.19"]
[Round "5.12"]
[White "Gajcin, Marina"]
[Black "Drljevic, Ljilja"]
[Result "1-0"]
[ECO "B10"]
[WhiteElo "2227"]
[BlackElo "2200"]
[Annotator "NA"]
[PlyCount "105"]
[EventDate "2021.03.16"]
[EventType "swiss"]
[EventCountry "SRB"]
[SourceTitle "playchess.com"]
[Source "ChessBase"]
[SourceQuality "1"]
[TimeControl "40/5400+30:1800+30"]

1. e4 {[%emt 0:00:00]} c6 {[%emt 0:00:00]} 2. Nc3 {[%emt 0:00:41]} d5 {[%emt 0:00:02]} 3. Nf3 {[%emt 0:03:15]} dxe4 {[%emt 0:00:13]} 4. Nxe4 {[%emt 0:00:04]} Nf6 {[%emt 0:00:06]} 5. Nxf6+ {[%emt 0:06:50]} exf6 {[%emt 0:00:03]} 6. d4 {[%emt 0:00:27]} Bd6 {[%emt 0:00:37]} 7. Be2 {[%emt 0:00:59]} O-O {[%emt 0:00:27]} 8. O-O {[%emt 0:00:15]} Re8 {[%emt 0:01:26]} 9. c4 {[%emt 0:09:28]} Nd7 {[%emt 0:01:57]} 10. Be3 {[%emt 0:08:37]} Nf8 {[%emt 0:02:23]} 11. Qc2 {[%emt 0:08:21]} Bg4 {[%emt 0:10:43]} 12. h3 {[%emt 0:01:50]} Be6 {[%emt 0:13:37]} 13. Rfd1 {[%emt 0:06:08]} Qc8 {[%emt 0:09:39]} 14. Bf1 {[%emt 0:05:03]} Bf5 {[%emt 0:02:39]} 15. Qd2 {[%emt 0:07:14]} Be4 {[%emt 0:15:31]} 16. Ne1 {[%emt 0:11:13]} Ng6 {[%emt 0:08:09]} 17. f3 {[%emt 0:12:18]} Bf5 {[%emt 0:00:35]} 18. Nd3 {[%emt 0:01:44]} Qc7 {[%emt 0:13:02]} 19. c5 {[%emt 0:03:38]} Bg3 {[%emt 0:02:12]} 20. d5 {[%emt 0:01:29]} cxd5 {[%emt 0:05:26]} 21. Nb4 {[%emt 0:00:04]} Nf4 {[%emt 0:07:09]} 22. Bf2 {[%emt 0:03:31]} Bxf2+ {[%emt 0:01:50]} 23. Qxf2 {[%emt 0:00:01]} Rad8 {[%emt 0:00:18]} 24. Rac1 {[%emt 0:03:08]} h5 {[%emt 0:03:00]} 25. c6 {[%emt 0:00:52]} bxc6 {[%emt 0:00:42]} 26. Nxc6 {[%emt 0:00:18]} Ra8 {[%emt 0:00:31]} 27. Nd4 {[%emt 0:00:51]} Qe5 {[%emt 0:00:38]} 28. Re1 {[%emt 0:00:59]} Be4 {[%emt 0:00:23]} 29. fxe4 {[%emt 0:01:37]} dxe4 {[%emt 0:00:34]} 30. Rc3 {[%emt 0:02:04]} Nd5 {[%emt 0:00:30]} 31. Rc5 {[%emt 0:01:47]} Rac8 {[%emt 0:00:34]} 32. Rxc8 {[%emt 0:00:32]} Rxc8 {[%emt 0:00:03]} 33. Nf5 {[%emt 0:00:23]} g6 {[%emt 0:00:55]} 34. Ne3 {[%emt 0:00:15]} Nf4 {[%emt 0:00:21]} 35. Rd1 {[%emt 0:00:55]} Qg5 {[%emt 0:00:42]} 36. Kh1 {[%emt 0:00:21]} h4 {[%emt 0:00:31]} 37. Be2 {[%emt 0:00:43]} Qe5 {[%emt 0:00:30]} 38. Ba6 {[%emt 0:00:32]} Re8 {[%emt 0:00:24]} 39. Re1 {[%emt 0:00:29]} Nh5 {[%emt 0:00:36]} 40. Qxh4 {[%emt 0:00:00]} Ng3+ {[%emt 0:00:00]} 41. Kg1 {[%emt 0:01:03]} f5 {[%emt 0:02:47]} 42. Rd1 {[%emt 0:15:38]} Kg7 {[%emt 0:07:50]} 43. Bc4 {[%emt 0:08:16]} f4 {[%emt 0:09:29]} 44. Ng4 {[%emt 0:03:26]} Qc5+ {[%emt 0:01:17]} 45. Kh2 {[%emt 0:00:01]} Nh5 {[%emt 0:00:19]} 46. b3 {[%emt 0:03:19]} Qc7 {[%emt 0:05:39]} 47. Qg5 {[%emt 0:00:10]} f3+ {[%emt 0:02:27]} 48. Kg1 {[%emt 0:00:03]} Qb6+ {[%emt 0:01:14]} 49. Qe3 {[%emt 0:00:47]} Qb8 {[%emt 0:02:04]} 50. Qh6+ {[%emt 0:00:08]} Kg8 {[%emt 0:00:21]} 51. Qxg6+ {[%emt 0:00:04]} Ng7 {[%emt 0:00:11]} 52. Nh6+ {[%emt 0:00:11]} Kh8 {[%emt 0:00:11]} 53. Nxf7+ {[%emt 0:00:04]} 1-0

[Event "SRB-chW Semifinal 2021"]
[Site "Paracin"]
[Date "2021.03.19"]
[Round "5.13"]
[White "Djukic, Sandra"]
[Black "Chelushkina, Irina"]
[Result "1-0"]
[ECO "A90"]
[WhiteElo "2137"]
[BlackElo "2203"]
[Annotator "NA"]
[PlyCount "107"]
[EventDate "2021.03.16"]
[EventType "swiss"]
[EventCountry "SRB"]
[SourceTitle "playchess.com"]
[Source "ChessBase"]
[SourceQuality "1"]
[TimeControl "40/5400+30:1800+30"]

1. d4 e6 2. c4 f5 3. g3 Nf6 4. Bg2 c6 5. Nd2 d5 6. Nh3 Be7 7. Nf4 O-O 8. O-O Na6 9. b3 g5 10. Nd3 dxc4 11. Nxc4 Ne8 12. Nde5 Ng7 13. a3 Nc7 14. b4 Bd7 15. Qb3 Be8 16. e3 Rb8 17. Ra2 Bf6 18. a4 Be7 19. Nd3 Kh8 20. Nce5 a6 21. Bd2 Bf6 22. Rc2 Nd5 23. Rb1 Be7 24. Rcc1 Nf6 25. Nc5 Nd5 26. b5 cxb5 27. axb5 Bxc5 28. Rxc5 Bxb5 29. Bxd5 exd5 30. Rxd5 Qe8 31. Rd6 Qh5 32. Rc1 Rbe8 33. Qd5 Re7 34. Qf3 Qxf3 35. Nxf3 g4 36. Ne5 Rfe8 37. Bb4 Re6 38. h3 gxh3 39. Nf7+ Kg8 40. Nh6+ Kh8 41. Rc7 f4 42. gxf4 Rg6+ 43. Rxg6 hxg6 44. Nf7+ Kg8 45. Nd6 Ra8 46. Nxb5 axb5 47. Rxb7 Ra1+ 48. Kh2 Rf1 49. Kxh3 Rxf2 50. Kg3 Rf1 51. Kg2 Rb1 52. Bc5 Rb3 53. Kf3 Nf5 54. d5 1-0

[Event "SRB-chW Semifinal 2021"]
[Site "Paracin"]
[Date "2021.03.19"]
[Round "5.14"]
[White "Grozdanovic, Anastasia"]
[Black "Vujcic, Milena"]
[Result "1/2-1/2"]
[ECO "E81"]
[WhiteElo "1817"]
[BlackElo "2069"]
[Annotator "NA"]
[PlyCount "57"]
[EventDate "2021.03.16"]
[EventType "swiss"]
[EventCountry "SRB"]
[SourceTitle "playchess.com"]
[Source "ChessBase"]
[SourceQuality "1"]
[TimeControl "40/5400+30:1800+30"]

1. d4 {[%emt 0:00:00]} Nf6 {[%emt 0:00:00]} 2. c4 {[%emt 0:00:00]} g6 {[%emt 0:00:00]} 3. Nc3 {[%emt 0:00:00]} Bg7 {[%emt 0:00:00]} 4. e4 {[%emt 0:00:00]} d6 {[%emt 0:00:00]} 5. f3 {[%emt 0:00:06]} O-O {[%emt 0:00:00]} 6. Be3 {[%emt 0:00:10]} c5 {[%emt 0:00:02]} 7. dxc5 {[%emt 0:00:13]} dxc5 {[%emt 0:00:19]} 8. Qxd8 {[%emt 0:00:16]} Rxd8 {[%emt 0:00:04]} 9. Bxc5 {[%emt 0:00:10]} Nc6 {[%emt 0:00:48]} 10. Nge2 {[%emt 0:02:04]} Nd7 {[%emt 0:04:23]} 11. Be3 {[%emt 0:09:44]} Nde5 {[%emt 0:04:46]} 12. Nf4 {[%emt 0:04:37]} Nb4 {[%emt 0:01:32]} 13. Rd1 {[%emt 0:02:20]} Nc2+ {[%emt 0:01:25]} 14. Kf2 {[%emt 0:00:39]} Rxd1 {[%emt 0:00:16]} 15. Nxd1 {[%emt 0:00:04]} Nxe3 {[%emt 0:01:45]} 16. Nxe3 {[%emt 0:02:18]} Bd7 {[%emt 0:02:49]} 17. b3 {[%emt 0:08:22]} Nc6 {[%emt 0:03:54]} 18. Bd3 {[%emt 0:06:16]} Bd4 {[%emt 0:01:25]} 19. Bb1 {[%emt 0:09:50]} Rd8 {[%emt 0:04:28]} 20. Ke2 {[%emt 0:03:51]} a6 {[%emt 0:03:39]} 21. Rd1 {[%emt 0:05:27]} e5 {[%emt 0:02:38]} 22. Nfd5 {[%emt 0:02:20]} Kg7 {[%emt 0:02:31]} 23. Nc2 {[%emt 0:03:58]} f5 {[%emt 0:02:21]} 24. Nxd4 {[%emt 0:01:16]} Nxd4+ {[%emt 0:00:06]} 25. Ke3 {[%emt 0:00:43]} f4+ {[%emt 0:00:56]} 26. Kf2 {[%emt 0:01:07]} g5 {[%emt 0:00:17]} 27. Nb4 {[%emt 0:02:10]} Kf6 {[%emt 0:05:36]} 28. Nc2 {[%emt 0:01:36]} Bc6 {[%emt 0:02:49]} 29. Nxd4 {[%emt 0:05:07]} 1/2-1/2

[Event "SRB-chW Semifinal 2021"]
[Site "Paracin"]
[Date "2021.03.19"]
[Round "5.15"]
[White "Jurisic, Iskra"]
[Black "Ostojic, Katarina"]
[Result "1/2-1/2"]
[ECO "A40"]
[WhiteElo "1713"]
[BlackElo "2013"]
[Annotator "NA"]
[PlyCount "161"]
[EventDate "2021.03.16"]
[EventType "swiss"]
[EventCountry "SRB"]
[SourceTitle "playchess.com"]
[Source "ChessBase"]
[SourceQuality "1"]
[TimeControl "40/5400+30:1800+30"]

1. d4 {[%emt 0:00:00]} g6 {[%emt 0:00:00]} 2. c4 {[%emt 0:00:00]} f5 {[%emt 0:00:00]} 3. Nc3 {[%emt 0:01:49]} Bg7 {[%emt 0:00:21]} 4. h4 {[%emt 0:02:22]} h6 {[%emt 0:00:43]} 5. Nf3 {[%emt 0:08:19]} Nf6 {[%emt 0:01:04]} 6. Ne5 {[%emt 0:01:35]} O-O {[%emt 0:04:35]} 7. Nxg6 {[%emt 0:05:26]} Re8 8. g3 {[%emt 0:11:22]} d6 {[%emt 0:00:24]} 9. Bg2 {[%emt 0:05:20]} Nbd7 {[%emt 0:01:27]} 10. Nf4 {[%emt 0:02:53]} e5 {[%emt 0:01:07]} 11. dxe5 {[%emt 0:00:46]} dxe5 {[%emt 0:01:46]} 12. Bd5+ {[%emt 0:01:28]} Nxd5 {[%emt 0:04:01]} 13. Qxd5+ {[%emt 0:00:32]} Kh7 {[%emt 0:02:14]} 14. Nh5 {[%emt 0:02:17]} Qe7 {[%emt 0:01:12]} 15. Qf3 {[%emt 0:19:02]} Nb6 {[%emt 0:00:24]} 16. Nxg7 {[%emt 0:06:03]} Qxg7 {[%emt 0:00:26]} 17. c5 {[%emt 0:01:47]} e4 {[%emt 0:04:13]} 18. Qf4 {[%emt 0:01:39]} Nc4 {[%emt 0:00:22]} 19. O-O {[%emt 0:01:22]} c6 {[%emt 0:03:01]} 20. Nd1 {[%emt 0:04:28]} Ne5 {[%emt 0:06:11]} 21. Kh2 {[%emt 0:03:38]} Ng6 {[%emt 0:09:12]} 22. Qd2 {[%emt 0:04:03]} Rg8 {[%emt 0:10:51]} 23. h5 {[%emt 0:04:00]} Ne5 {[%emt 0:00:20]} 24. Qf4 {[%emt 0:00:37]} Ng4+ {[%emt 0:01:28]} 25. Kg2 {[%emt 0:00:40]} Nf6 {[%emt 0:01:46]} 26. Rh1 {[%emt 0:01:36]} Nd5 {[%emt 0:00:24]} 27. Qd6 {[%emt 0:00:43]} Bd7 {[%emt 0:07:16]} 28. Qg6+ {[%emt 0:03:21]} Qxg6 {[%emt 0:00:34]} 29. hxg6+ {[%emt 0:00:04]} Rxg6 {[%emt 0:00:07]} 30. Ne3 {[%emt 0:00:13]} Nb4 {[%emt 0:24:33]} 31. a3 {[%emt 0:01:48]} Na6 {[%emt 0:00:12]} 32. b4 {[%emt 0:02:34]} Be6 {[%emt 0:00:30]} 33. Nc2 {[%emt 0:00:44]} Rd8 {[%emt 0:03:12]} 34. Bf4 {[%emt 0:01:03]} Bc4 {[%emt 0:10:23]} 35. Rae1 {[%emt 0:01:19]} b6 {[%emt 0:01:04]} 36. Ne3 {[%emt 0:00:23]} Be6 {[%emt 0:00:22]} 37. cxb6 {[%emt 0:00:25]} axb6 {[%emt 0:00:01]} 38. Rh5 {[%emt 0:00:32]} Rf8 {[%emt 0:02:25]} 39. Reh1 {[%emt 0:00:34]} Rff6 {[%emt 0:00:43]} 40. Bg5 {[%emt 0:00:00]} Rxg5 {[%emt 0:00:00]} 41. Rxg5 {[%emt 0:01:55]} c5 {[%emt 0:05:09]} 42. bxc5 {[%emt 0:02:27]} Nxc5 {[%emt 0:01:45]} 43. Rgh5 {[%emt 0:01:38]} Nb3 {[%emt 0:01:44]} 44. R1h4 {[%emt 0:04:34]} Nd4 {[%emt 0:01:08]} 45. Rh1 {[%emt 0:06:24]} Nxe2 {[%emt 0:01:12]} 46. Rb1 {[%emt 0:00:26]} f4 {[%emt 0:04:07]} 47. Nd5 {[%emt 0:02:08]} Bxd5 {[%emt 0:15:47]} 48. Rxd5 {[%emt 0:00:09]} fxg3 {[%emt 0:02:49]} 49. fxg3 {[%emt 0:00:20]} Rg6 {[%emt 0:00:01]} 50. Rd7+ {[%emt 0:00:27]} Kg8 {[%emt 0:00:21]} 51. Rb3 {[%emt 0:00:52]} Nf4+ {[%emt 0:00:25]} 52. Kh2 {[%emt 0:01:09]} Nd3 {[%emt 0:00:42]} 53. Rc3 {[%emt 0:01:38]} Nc5 {[%emt 0:00:16]} 54. Re7 {[%emt 0:01:16]} Kf8 {[%emt 0:00:21]} 55. Re5 {[%emt 0:00:12]} Kf7 {[%emt 0:00:46]} 56. Rc2 {[%emt 0:04:31]} Rd6 {[%emt 0:00:27]} 57. Rf2+ {[%emt 0:03:51]} Kg6 {[%emt 0:01:05]} 58. Re2 {[%emt 0:01:14]} Rd4 {[%emt 0:00:29]} 59. Re8 {[%emt 0:01:31]} Rd3 {[%emt 0:01:07]} 60. Rb8 {[%emt 0:01:09]} Rd6 {[%emt 0:00:52]} 61. Re8 {[%emt 0:00:41]} Kf5 {[%emt 0:00:15]} 62. Rf8+ {[%emt 0:00:20]} Ke5 {[%emt 0:00:17]} 63. Kg2 {[%emt 0:01:32]} Ne6 {[%emt 0:00:30]} 64. Re8 {[%emt 0:00:49]} Kf5 {[%emt 0:00:56]} 65. Rf2+ {[%emt 0:00:51]} Ke5 {[%emt 0:00:08]} 66. Re2 {[%emt 0:00:13]} Kd5 {[%emt 0:00:40]} 67. Re7 {[%emt 0:01:08]} Rc6 {[%emt 0:00:11]} 68. Rd7+ {[%emt 0:00:23]} Ke5 {[%emt 0:00:10]} 69. Re7 {[%emt 0:00:38]} Rc4 {[%emt 0:01:01]} 70. Rb7 {[%emt 0:01:58]} Nd4 {[%emt 0:00:40]} 71. Re7+ {[%emt 0:00:36]} Ne6 {[%emt 0:00:17]} 72. Rb7 {[%emt 0:00:13]} Rc6 {[%emt 0:00:29]} 73. Rh7 {[%emt 0:00:45]} Nc5 {[%emt 0:00:39]} 74. Re7+ {[%emt 0:00:46]} Kd4 {[%emt 0:00:18]} 75. Re8 {[%emt 0:00:38]} Kd3 {[%emt 0:00:54]} 76. Re1 {[%emt 0:00:28]} Kd2 {[%emt 0:00:16]} 77. R8xe4 {[%emt 0:00:36]} Nxe4 {[%emt 0:00:06]} 78. Rxe4 {[%emt 0:00:04]} Kc3 {[%emt 0:00:17]} 79. Rb4 {[%emt 0:00:25]} Rd6 {[%emt 0:00:32]} 80. Kh3 {[%emt 0:00:31]} Re6 {[%emt 0:01:22]} 81. Kh4 {[%emt 0:00:37]} 1/2-1/2

[Event "SRB-chW Semifinal 2021"]
[Site "Paracin"]
[Date "2021.03.20"]
[Round "6.11"]
[White "Djukic, Sandra"]
[Black "Manakova, Maria"]
[Result "0-1"]
[ECO "E12"]
[WhiteElo "2137"]
[BlackElo "2271"]
[Annotator "NA"]
[PlyCount "80"]
[EventDate "2021.03.16"]
[EventType "swiss"]
[EventCountry "SRB"]
[SourceTitle "playchess.com"]
[Source "ChessBase"]
[SourceQuality "1"]
[TimeControl "40/5400+30:1800+30"]

1. d4 {[%emt 0:00:22]} Nf6 {[%emt 0:06:48]} 2. c4 {[%emt 0:00:07]} e6 {[%emt 0:00:16]} 3. Nf3 {[%emt 0:00:05]} b6 {[%emt 0:00:38]} 4. a3 {[%emt 0:00:06]} Bb7 {[%emt 0:01:02]} 5. Nc3 {[%emt 0:00:06]} Be7 {[%emt 0:01:55]} 6. d5 {[%emt 0:00:16]} exd5 {[%emt 0:07:49]} 7. cxd5 {[%emt 0:00:26]} O-O {[%emt 0:00:05]} 8. g3 {[%emt 0:00:48]} a5 {[%emt 0:01:28]} 9. Bg2 {[%emt 0:00:10]} Na6 {[%emt 0:03:28]} 10. O-O {[%emt 0:02:43]} Nc5 {[%emt 0:00:44]} 11. Nd4 {[%emt 0:09:54]} d6 {[%emt 0:02:29]} 12. b3 {[%emt 0:16:58]} Nfd7 {[%emt 0:07:23]} 13. Nc6 {[%emt 0:17:22]} Bxc6 {[%emt 0:15:44]} 14. dxc6 {[%emt 0:00:07]} Bf6 {[%emt 0:00:45]} 15. Qc2 {[%emt 0:00:42]} Ne5 {[%emt 0:00:54]} 16. Rb1 {[%emt 0:00:58]} Ne6 {[%emt 0:09:43]} 17. Bb2 {[%emt 0:06:59]} Ng6 {[%emt 0:08:21]} 18. e3 {[%emt 0:03:32]} Ne7 {[%emt 0:02:20]} 19. Rfd1 {[%emt 0:06:14]} Rb8 {[%emt 0:01:09]} 20. Bc1 {[%emt 0:15:34]} Bxc3 {[%emt 0:17:48]} 21. Qxc3 {[%emt 0:00:09]} b5 {[%emt 0:02:53]} 22. Qxa5 {[%emt 0:01:20]} Qe8 {[%emt 0:00:04]} 23. Bb2 {[%emt 0:01:44]} Nxc6 {[%emt 0:00:22]} 24. Qc3 {[%emt 0:01:27]} Ncd8 {[%emt 0:00:16]} 25. b4 {[%emt 0:02:40]} Qe7 {[%emt 0:00:37]} 26. Rd2 {[%emt 0:01:42]} f6 {[%emt 0:01:40]} 27. Rbd1 {[%emt 0:01:00]} Kh8 {[%emt 0:00:05]} 28. Rd5 {[%emt 0:00:30]} Nf7 {[%emt 0:00:11]} 29. Qd3 {[%emt 0:02:01]} Qe8 {[%emt 0:02:20]} 30. Rh5 {[%emt 0:02:12]} h6 {[%emt 0:01:02]} 31. Qf5 {[%emt 0:04:29]} Nfg5 {[%emt 0:02:55]} 32. Rh4 {[%emt 0:00:15]} Rf7 {[%emt 0:01:50]} 33. Bd5 {[%emt 0:02:23]} c6 {[%emt 0:00:38]} 34. Bb3 {[%emt 0:00:04]} d5 {[%emt 0:00:17]} 35. Bc2 {[%emt 0:00:01]} Nf8 {[%emt 0:00:31]} 36. Rxh6+ {[%emt 0:01:02]} gxh6 {[%emt 0:00:11]} 37. Bxf6+ {[%emt 0:00:04]} Kg8 {[%emt 0:00:07]} 38. h4 {[%emt 0:00:15]} Qe6 {[%emt 0:01:18]} 39. hxg5 {[%emt 0:00:17]} Qxf5 {[%emt 0:00:04]} 40. Bxf5 {[%emt 0:00:00]} hxg5 {[%emt 0:00:00]} 0-1

[Event "SRB-chW Semifinal 2021"]
[Site "Paracin"]
[Date "2021.03.20"]
[Round "6.12"]
[White "Dimitrijevic, Andjela"]
[Black "Gajcin, Marina"]
[Result "0-1"]
[ECO "B50"]
[WhiteElo "1830"]
[BlackElo "2227"]
[Annotator "NA"]
[PlyCount "86"]
[EventDate "2021.03.16"]
[EventType "swiss"]
[EventCountry "SRB"]
[SourceTitle "playchess.com"]
[Source "ChessBase"]
[SourceQuality "1"]
[TimeControl "40/5400+30:1800+30"]

1. e4 {[%emt 0:00:00]} c5 {[%emt 0:00:00]} 2. Nf3 {[%emt 0:00:00]} d6 {[%emt 0:00:00]} 3. c3 {[%emt 0:00:06]} Nf6 {[%emt 0:00:05]} 4. h3 {[%emt 0:00:20]} g6 {[%emt 0:00:18]} 5. Bd3 {[%emt 0:00:43]} Nc6 {[%emt 0:01:22]} 6. Bc2 {[%emt 0:04:03]} Bg7 {[%emt 0:00:13]} 7. O-O {[%emt 0:00:22]} e5 {[%emt 0:01:15]} 8. d3 {[%emt 0:01:04]} O-O {[%emt 0:00:09]} 9. a3 {[%emt 0:00:44]} b6 {[%emt 0:00:27]} 10. Be3 {[%emt 0:12:29]} Bb7 {[%emt 0:01:22]} 11. Nbd2 {[%emt 0:02:41]} Nh5 {[%emt 0:08:37]} 12. b4 {[%emt 0:16:35]} Rc8 {[%emt 0:10:03]} 13. Re1 {[%emt 0:16:01]} Nf4 {[%emt 0:19:33]} 14. b5 {[%emt 0:14:52]} Na5 {[%emt 0:09:42]} 15. d4 {[%emt 0:08:37]} cxd4 {[%emt 0:02:27]} 16. cxd4 {[%emt 0:00:43]} Ne6 {[%emt 0:06:20]} 17. d5 {[%emt 0:05:37]} Nc5 {[%emt 0:04:29]} 18. Re2 {[%emt 0:02:30]} Qd7 {[%emt 0:06:02]} 19. Rc1 {[%emt 0:04:27]} Qxb5 {[%emt 0:01:47]} 20. Rb1 {[%emt 0:03:38]} Qd7 {[%emt 0:00:41]} 21. Re1 {[%emt 0:03:55]} Rc7 {[%emt 0:02:58]} 22. Nh2 {[%emt 0:00:40]} Ba6 {[%emt 0:05:24]} 23. Bxc5 {[%emt 0:00:44]} Rxc5 {[%emt 0:00:29]} 24. Nb3 {[%emt 0:00:30]} Nxb3 {[%emt 0:02:09]} 25. Bxb3 {[%emt 0:00:07]} Rfc8 {[%emt 0:01:17]} 26. Nf1 {[%emt 0:00:37]} Ra5 {[%emt 0:02:12]} 27. a4 {[%emt 0:00:31]} Rc3 {[%emt 0:00:47]} 28. Re3 {[%emt 0:00:39]} Rac5 {[%emt 0:00:53]} 29. Rxc3 {[%emt 0:00:34]} Rxc3 {[%emt 0:00:01]} 30. Ne3 {[%emt 0:00:10]} Qc7 {[%emt 0:02:57]} 31. Kh2 {[%emt 0:00:49]} Bd3 {[%emt 0:01:06]} 32. Rb2 {[%emt 0:00:38]} Bxe4 {[%emt 0:00:29]} 33. Qg4 {[%emt 0:00:31]} Bd3 {[%emt 0:02:43]} 34. Nd1 {[%emt 0:00:30]} Rc5 {[%emt 0:01:11]} 35. f3 {[%emt 0:00:26]} Bh6 {[%emt 0:02:08]} 36. Qh4 {[%emt 0:00:19]} Bf4+ {[%emt 0:00:14]} 37. g3 {[%emt 0:00:41]} Bc1 {[%emt 0:00:12]} 38. Rg2 {[%emt 0:00:26]} Bc2 {[%emt 0:01:40]} 39. Bxc2 {[%emt 0:00:10]} Rxc2 {[%emt 0:00:01]} 40. Nf2 {[%emt 0:00:00]} Be3 {[%emt 0:00:00]} 41. g4 {[%emt 0:02:15]} h6 {[%emt 0:11:02]} 42. Kg1 {[%emt 0:03:21]} Rc1+ {[%emt 0:00:35]} 43. Kh2 {[%emt 0:00:09]} Bg5 {[%emt 0:00:09]} 0-1

[Event "SRB-chW Semifinal 2021"]
[Site "Paracin"]
[Date "2021.03.20"]
[Round "6.13"]
[White "Srdanovic, Jovana"]
[Black "Jurisic, Iskra"]
[Result "1-0"]
[ECO "E61"]
[WhiteElo "2109"]
[BlackElo "1713"]
[Annotator "NA"]
[PlyCount "71"]
[EventDate "2021.03.16"]
[EventType "swiss"]
[EventCountry "SRB"]
[SourceTitle "playchess.com"]
[Source "ChessBase"]
[SourceQuality "1"]
[TimeControl "40/5400+30:1800+30"]

1. d4 Nf6 2. c4 g6 3. Nc3 Bg7 4. Nf3 O-O 5. Bg5 h6 6. Bh4 c5 7. d5 d6 8. e3 Qa5 9. Nd2 Na6 10. Be2 Nc7 11. Nb3 Qa6 12. a4 b6 13. O-O Qb7 14. e4 g5 15. Bg3 Nd7 16. Nd2 Ne5 17. h4 gxh4 18. Bxh4 Ng6 19. Bg3 Ne8 20. f4 Bd4+ 21. Kh1 Kh7 22. Bd3 f5 23. Nf3 Be3 24. Ne1 fxe4 25. Bxe4 Bf5 26. Qd3 Bxe4 27. Nxe4 Bd4 28. f5 Ne5 29. Bxe5 Bxe5 30. f6 Kh8 31. f7 Nf6 32. Nf3 Bxb2 33. Rab1 Nxe4 34. Qxe4 Bf6 35. Qg6 Bg7 36. Ng5 1-0